bitfinex-derivatives/quotes_SOLF0:USTF0_20250321
["timestamp","ask_amount","ask_price","bid_price","bid_amount"]
[1742575074439,7.98970023,126.04,126.02,19.75488801]
[1742575074628,7.98970023,126.04,126.02,0.0548285]
[1742575075433,7.9384,126.03,126.02,0.0548285]
[1742575075633,11.76105951,126.03,125.97,11.76105951]
[1742575075938,7.9406,126.0,125.97,11.76105951]
[1742575076439,7.9406,126.0,125.98,7.9413]
[1742575076640,7.9406,126.0,125.97,11.76105951]
[1742575076836,7.99829908,126.0,125.98,0.05981408]
[1742575077640,7.99829908,126.0,125.98,8.00121408]
[1742575077840,7.9409,125.99,125.98,0.05981408]
[1742575078035,41.36105951,125.99,125.95,11.103922]
[1742575078238,11.76105951,125.98,125.95,11.103922]
[1742575078444,7.9425,125.97,125.95,11.103922]
[1742575078634,41.36105951,125.96,125.95,11.103922]
[1742575079441,49.30385951,125.96,125.95,11.103922]
[1742575079946,41.36105951,125.96,125.94,0.06070454]
[1742575080147,7.9434,125.95,125.94,0.06070454]
[1742575080337,29.6,125.96,125.94,0.06070454]
[1742575080535,29.6,125.96,125.94,11.82176405]
[1742575080932,29.6,125.96,125.94,0.06070454]
[1742575081743,0.05438781,125.97,125.95,7.9431]
[1742575082048,0.05438781,125.97,125.94,0.06070454]
[1742575082341,0.05438781,125.97,125.94,8.00420454]
[1742575082640,0.05438781,125.97,125.94,0.06070454]
[1742575082835,7.9431,125.96,125.94,0.06070454]
[1742575083442,7.99678781,125.97,125.94,8.00470454]
[1742575084147,18.39033438,125.96,125.94,0.06070454]
[1742575084337,29.62,125.95,125.89,261.92]
[1742575084541,7.945,125.93,125.89,261.92]
[1742575084735,29.62,125.92,125.89,261.92]
[1742575085049,29.62,125.92,125.91,7.9459]
[1742575085840,29.62,125.92,125.9,0.05442013]
[1742575087748,7.9459,125.91,125.9,0.05442013]
[1742575088139,37.5655,125.92,125.9,0.05442013]
[1742575088650,29.62,125.92,125.91,7.9459]
[1742575088948,29.62,125.92,125.9,0.05442013]
[1742575089139,29.62,125.92,125.9,8.00042013]
[1742575089343,29.62,125.92,125.9,0.05442013]
[1742575089849,29.62,125.92,125.91,7.9459]
[1742575090549,29.62,125.92,125.9,0.05442013]
[1742575092355,7.9459,125.91,125.9,0.05442013]
[1742575092854,37.5657,125.92,125.9,0.05442013]
[1742575093846,37.5657,125.92,125.9,8.00102013]
[1742575094551,29.62,125.92,125.91,7.9459]
[1742575097052,0.05327008,125.93,125.92,7.9453]
[1742575098253,29.62,125.99,125.97,7.9421]
[1742575098459,29.62,125.99,125.94,48.01033438]
[1742575098759,29.62,125.99,125.96,7.9424]
[1742575098959,29.62,125.99,125.93,29.62]
[1742575099456,0.05249799,125.97,125.95,7.99881624]
[1742575099660,0.05249799,125.97,125.95,0.05571624]
[1742575100163,0.05249799,125.97,125.96,7.9428]
[1742575101051,0.05249799,125.97,125.95,0.05571624]
[1742575101261,29.62,125.96,125.95,0.05571624]
[1742575101556,7.9456,125.92,125.89,261.92]
[1742575101761,37.5656,125.92,125.89,261.92]
[1742575102155,37.5656,125.92,125.85,8.5261]
[1742575102156,29.62,125.92,125.85,26.91643438]
[1742575102351,29.62,125.92,125.85,56.53643438]
[1742575102557,29.62,125.92,125.9,7.9461]
[1742575102756,0.0582043,125.9,125.89,18.39033438]
[1742575103151,0.05047378,125.91,125.9,7.9466]
[1742575106460,7.378e-05,125.91,125.9,7.9466]
[1742575106657,29.62,125.97,125.9,278.5551]
[1742575106865,29.62,125.97,125.93,18.39033438]
[1742575107160,29.62,125.97,125.96,7.9428]
[1742575109263,0.05063676,125.98,125.97,7.9422]
[1742575110669,0.05063676,125.98,125.96,7.9425]
[1742575110868,0.05063676,125.98,125.95,0.0548583]
[1742575111264,0.05063676,125.98,125.97,7.9422]
[1742575123282,3.676e-05,125.98,125.97,7.9422]
[1742575124078,3.676e-05,125.98,125.97,37.5422]
[1742575127777,3.676e-05,125.98,125.97,7.9422]
[1742575127984,3.676e-05,125.98,125.96,269.9825]
[1742575128182,3.676e-05,125.98,125.95,0.0548583]
[1742575128988,7.94183676,125.98,125.95,7.9978583]
[1742575129187,3.676e-05,125.98,125.95,0.0548583]
[1742575129488,7.94193676,125.98,125.95,7.9978583]
[1742575129881,3.676e-05,125.98,125.95,7.9978583]
[1742575130083,7.9425,125.97,125.95,0.0548583]
[1742575130280,3.676e-05,125.98,125.95,0.0548583]
[1742575130684,37.5225,125.97,125.95,7.9980583]
[1742575130882,29.58,125.97,125.95,7.9980583]
[1742575131089,29.58,125.97,125.95,0.0548583]
[1742575131280,29.58,125.97,125.96,7.9428]
[1742575132088,29.58,125.97,125.95,7.9980583]
[1742575133282,37.5224,125.97,125.95,7.9980583]
[1742575133485,29.58,125.97,125.95,7.9980583]
[1742575133686,29.58,125.97,125.96,7.9428]
[1742575134580,3.676e-05,125.98,125.97,7.9422]
[1742575139500,3.676e-05,125.98,125.97,19.7070485]
[1742575141404,29.58,126.03,126.01,7.9395]
[1742575142504,29.63855525,126.03,126.02,7.939]
[1742575143205,29.63855525,126.03,126.01,7.99075636]
[1742575144007,37.57695525,126.03,126.01,0.05145636]
[1742575144209,29.63855525,126.03,126.01,0.05145636]
[1742575144803,0.05855525,126.03,126.02,7.939]
[1742575146406,11.82340375,126.03,126.01,0.05145636]
[1742575146609,11.7648485,126.02,126.01,0.05145636]
[1742575146812,11.7648485,126.02,125.99,262.0]
[1742575147015,29.58,126.01,125.97,19.7067485]
[1742575147405,41.3448485,126.01,125.97,11.7648485]
[1742575147610,11.7648485,126.0,125.96,19.7073485]
[1742575147807,11.7648485,125.99,125.94,318.1605365]
[1742575148005,7.9426,125.97,125.94,326.1042365]
[1742575148204,7.9426,125.97,125.95,0.05343054]
[1742575148509,11.7648485,125.97,125.95,0.05343054]
[1742575148710,11.7648485,125.96,125.92,52.360688]
[1742575149008,7.9445,125.94,125.92,52.360688]
[1742575149408,29.58,125.95,125.92,44.415688]
[1742575149603,7.9447,125.93,125.92,44.415688]
[1742575150815,7.9447,125.93,125.91,0.05679193]
[1742575151415,37.5253,125.92,125.91,0.05679193]
[1742575151617,29.58,125.92,125.87,18.39703541]
[1742575151819,7.9463,125.91,125.87,18.39703541]
[1742575152021,29.58,125.92,125.86,306.395688]
[1742575152717,0.05469158,125.9,125.88,0.05088425]
[1742575153023,7.9472,125.89,125.88,0.05088425]
[1742575153719,8.00149158,125.9,125.88,0.05088425]
[1742575153918,0.05469158,125.9,125.88,0.05088425]
[1742575154421,0.05469158,125.9,125.89,7.9472]
[1742575155717,0.05469158,125.9,125.89,26.34423541]
[1742575157025,29.58,125.94,125.89,18.39703541]
[1742575157420,29.58,125.96,125.91,18.39703541]
[1742575158325,0.05331561,125.95,125.93,7.9444]
[1742575159421,0.05331561,125.95,125.92,0.05842854]
[1742575160525,0.05331561,125.95,125.92,8.00342854]
[1742575160821,0.05331561,125.95,125.92,0.05842854]
[1742575161027,7.99711561,125.95,125.92,8.00342854]
[1742575161628,0.05331561,125.95,125.92,0.05842854]
[1742575161819,0.05331561,125.95,125.93,7.9444]
[1742575162427,0.05331561,125.95,125.94,7.9441]
[1742575163224,0.05331561,125.95,125.93,7.9443]
[1742575164622,0.05331561,125.95,125.94,7.9441]
[1742575168533,0.05331561,125.95,125.94,26.34113541]
[1742575169033,1.561e-05,125.95,125.94,26.34113541]
[1742575169226,4.3229,126.01,125.99,7.9404]
[1742575169432,26.79293541,126.05,125.96,18.39703541]
[1742575169635,29.58,126.04,125.96,18.39703541]
[1742575169827,7.9388,126.03,125.96,18.39703541]
[1742575170129,29.58,126.04,125.96,18.39703541]
[1742575170535,0.05112644,126.01,126.0,7.94]
[1742575170926,0.05112644,126.01,125.99,7.99820721]
[1742575171234,0.05112644,126.01,125.99,0.05760721]
[1742575171421,7.99082644,126.01,125.99,0.05760721]
[1742575171625,0.05112644,126.01,125.99,0.05760721]
[1742575172034,7.99102644,126.01,125.99,0.05760721]
[1742575173525,7.9403,126.0,125.99,0.05760721]
[1742575174026,0.05112644,126.01,125.99,0.05760721]
[1742575174338,7.99122644,126.01,125.99,0.05760721]
[1742575174538,0.05112644,126.01,125.99,0.05760721]
[1742575174939,7.9403,126.0,125.99,0.05760721]
[1742575176339,7.99112644,126.01,125.99,0.05760721]
[1742575177533,0.05112644,126.01,125.99,7.99840721]
[1742575177736,0.05112644,126.01,125.99,0.05760721]
[1742575178130,7.9403,126.0,125.99,0.05760721]
[1742575181243,7.99112644,126.01,125.99,0.05760721]
[1742575181847,7.9403,126.0,125.99,0.05760721]
[1742575183749,0.05112644,126.01,125.99,7.99790721]
[1742575184748,0.05112644,126.01,125.99,0.05760721]
[1742575185153,11.76251984,126.0,125.99,0.05760721]
[1742575185449,19.70281984,126.0,125.99,0.05760721]
[1742575187556,7.9423,125.97,125.95,19.70571984]
[1742575187860,7.9423,125.97,125.95,7.9432]
[1742575188252,37.5018,125.98,125.96,7.9428]
[1742575188656,29.56,125.98,125.95,11.76251984]
[1742575188861,29.61698082,125.98,125.97,7.9422]
[1742575189658,29.61698082,125.98,125.97,19.70471984]
[1742575189962,0.05698082,125.98,125.97,19.70471984]
[1742575195258,8.082e-05,125.98,125.97,19.70471984]
[1742575195868,29.56,126.03,126.01,7.9391]
[1742575196065,29.56,126.03,126.0,11.76251984]
[1742575196366,29.56,126.03,126.01,7.9396]
[1742575196967,29.61088816,126.03,126.01,7.99080502]
[1742575197169,29.61088816,126.03,126.02,7.939]
[1742575198268,0.05088816,126.03,126.02,7.939]
[1742575199656,0.05088816,126.03,126.01,0.05120502]
[1742575200263,29.59088816,126.03,126.01,0.05120502]
[1742575200467,29.59088816,126.03,126.02,7.939]
[1742575201573,37.52928816,126.03,126.01,0.05120502]
[1742575201772,41.353408,126.03,126.01,0.05120502]
[1742575201964,11.76251984,126.02,126.01,0.05120502]
[1742575202466,11.76251984,126.02,125.97,7.9419]
[1742575202669,11.76251984,126.02,125.97,11.76251984]
[1742575203067,7.9399,126.01,125.98,7.9412]
[1742575203271,7.9399,126.01,125.97,11.76251984]
[1742575203475,7.99431161,126.01,125.99,7.9406]
[1742575203863,7.9403,126.0,125.99,7.9406]
[1742575204069,7.9403,126.0,125.98,7.99457723]
[1742575204270,29.54,126.0,125.98,0.05347723]
[1742575204474,41.30251984,126.0,125.98,0.05347723]
[1742575204664,7.9409,125.99,125.98,0.05347723]
[1742575206972,11.76251984,125.99,125.92,56.17820784]
[1742575207171,11.76251984,125.97,125.92,56.17820784]
[1742575207366,29.54,125.96,125.93,7.9444]
[1742575207972,7.9434,125.95,125.93,7.9444]
[1742575208174,7.9434,125.95,125.93,0.06019228]
[1742575208881,29.59466929,125.96,125.93,0.06019228]
[1742575209274,11.76251984,125.94,125.93,0.06019228]
[1742575209675,19.70661984,125.94,125.93,0.06019228]
[1742575210570,11.76251984,125.94,125.9,261.98]
[1742575210881,41.30251984,125.93,125.88,11.76251984]
[1742575211076,11.76251984,125.92,125.87,22.86644184]
[1742575211277,11.76251984,125.92,125.87,30.81464184]
[1742575211779,8.0060998,125.91,125.88,0.0518231]
[1742575212281,0.0597998,125.91,125.88,11.81434294]
[1742575212675,0.0597998,125.91,125.89,19.70921984]
[1742575215383,0.0597998,125.91,125.9,7.9466]
[1742575216580,0.0597998,125.91,125.9,19.70911984]
[1742575217082,0.0597998,125.91,125.89,7.9469]
[1742575217476,0.0597998,125.91,125.89,7.9472]
[1742575217883,0.0597998,125.91,125.88,11.81434294]
[1742575218889,0.0597998,125.91,125.88,0.0518231]
[1742575219084,11.82231964,125.91,125.88,0.0518231]
[1742575219297,29.56,125.9,125.88,0.0518231]
[1742575219487,37.5069,125.9,125.88,0.0518231]
[1742575219987,29.56,125.9,125.89,7.9472]
[1742575220687,37.5067,125.9,125.88,7.9993231]
[1742575221294,29.56,125.9,125.88,7.9993231]
[1742575222192,29.56,125.9,125.88,0.0518231]
[1742575222485,11.76251984,125.89,125.88,0.0518231]
[1742575222691,7.9489,125.87,125.84,7.9501]
[1742575222892,29.56,125.86,125.84,7.9501]
[1742575223392,29.56,125.86,125.85,7.9497]
[1742575224186,29.56,125.86,125.84,19.77004778]
[1742575224491,37.5092,125.86,125.84,0.05752794]
[1742575225283,37.5092,125.86,125.84,8.00782794]
[1742575225490,29.56,125.86,125.84,8.00782794]
[1742575225688,29.56,125.86,125.84,0.05752794]
[1742575226085,37.5096,125.86,125.84,0.05752794]
[1742575227289,37.5096,125.86,125.84,8.00782794]
[1742575228395,37.5096,125.86,125.84,0.05752794]
[1742575229698,7.9497,125.85,125.84,0.05752794]
[1742575229898,11.76251984,125.85,125.8,262.14]
[1742575230094,11.76251984,125.81,125.76,8.3006]
[1742575230300,29.56,125.8,125.77,11.76251984]
[1742575230995,41.38046969,125.8,125.77,0.03181134]
[1742575231195,29.61794985,125.8,125.77,11.79433118]
[1742575231396,29.61794985,125.8,125.77,19.74873118]
[1742575232189,41.38046969,125.8,125.77,0.03181134]
[1742575233191,11.76251984,125.78,125.77,0.03181134]
[1742575233604,11.76251984,125.78,125.74,7.9563]
[1742575233801,29.56,125.77,125.74,19.71881984]
[1742575233996,29.56,125.77,125.75,7.9561]
[1742575234707,29.62011315,125.77,125.75,7.9561]
[1742575236015,29.62011315,125.77,125.74,11.76251984]
[1742575236712,29.62011315,125.77,125.74,19.71871984]
[1742575237014,29.62011315,125.77,125.75,11.76251984]
[1742575237512,29.62011315,125.77,125.74,19.71891984]
[1742575237914,29.62011315,125.77,125.71,11.76251984]
[1742575237915,11.76251984,125.76,125.71,11.76251984]
[1742575238414,7.9561,125.75,125.71,19.72071984]
[1742575238612,29.56,125.74,125.71,19.72071984]
[1742575238806,0.0523036,125.74,125.73,11.76251984]
[1742575239009,0.0523036,125.74,125.73,19.71981984]
[1742575240512,0.0523036,125.74,125.7,282.41561984]
[1742575240811,37.5177,125.73,125.7,262.28]
[1742575241015,29.56,125.73,125.7,274.04251984]
[1742575241216,37.5173,125.73,125.7,262.28]
[1742575241419,29.56,125.73,125.7,280.73876014]
[1742575241918,0.0523036,125.74,125.7,310.29876014]
[1742575242107,0.0523036,125.74,125.72,18.45876014]
[1742575242406,0.0523036,125.74,125.73,7.9573]
[1742575243511,29.6323036,125.74,125.7,262.28]
[1742575243915,29.6323036,125.74,125.66,18.45876014]
[1742575244220,7.9584,125.72,125.69,7.9598]
[1742575244522,29.63180695,125.71,125.69,7.9598]
[1742575244721,7.9615,125.67,125.65,262.44]
[1742575245020,37.5215,125.67,125.65,262.44]
[1742575245218,37.58080182,125.67,125.65,262.44]
[1742575245617,29.61930182,125.67,125.65,270.4024]
[1742575246122,29.61930182,125.67,125.65,262.44]
[1742575246326,0.05930182,125.67,125.65,262.44]
[1742575246618,29.58,125.71,125.66,18.45876014]
[1742575246824,29.58,125.71,125.66,22.60396014]
[1742575247220,29.58,125.71,125.68,7.9602]
[1742575247719,29.64091469,125.71,125.68,8.01665687]
[1742575247925,29.64091469,125.71,125.69,7.9598]
[1742575248117,29.64091469,125.71,125.68,0.05645687]
[1742575248619,29.64091469,125.71,125.68,8.01655687]
[1742575249120,29.64091469,125.71,125.68,0.05645687]
[1742575250923,37.60001469,125.71,125.68,0.05645687]
[1742575251931,29.64091469,125.71,125.69,7.9595]
[1742575252633,29.64091469,125.71,125.68,0.05645687]
[1742575253925,29.64091469,125.71,125.69,7.9595]
[1742575256031,29.64091469,125.71,125.68,0.05645687]
[1742575256633,50.54091469,125.71,125.68,0.05645687]
[1742575257535,50.54091469,125.71,125.7,7.9592]
[1742575260127,20.96091469,125.71,125.7,7.9592]
[1742575267342,20.96091469,125.71,125.7,19.77083589]
[1742575267536,4.393,125.77,125.7,41.39163589]
[1742575267743,4.393,125.77,125.73,11.81163589]
[1742575267948,41.9281,125.77,125.74,7.9564]
[1742575268239,12.3481,125.77,125.74,7.9564]
[1742575268441,41.9281,125.77,125.74,7.9564]
[1742575268639,41.98809318,125.77,125.74,8.01145645]
[1742575268942,34.03299318,125.77,125.75,7.956]
[1742575269142,29.63999318,125.77,125.75,7.956]
[1742575269342,29.63999318,125.77,125.74,0.05505645]
[1742575269642,7.956,125.76,125.74,0.05505645]
[1742575270035,29.63999318,125.77,125.74,0.05505645]
[1742575270637,37.59539318,125.77,125.74,0.05505645]
[1742575270837,29.63999318,125.77,125.74,0.05505645]
[1742575271140,29.63999318,125.77,125.74,8.01175645]
[1742575271341,29.63999318,125.77,125.74,0.05505645]
[1742575271740,7.9557,125.76,125.74,0.05505645]
[1742575272644,7.9557,125.76,125.74,8.01175645]
[1742575272845,37.59509318,125.77,125.74,0.05505645]
[1742575273046,8.01509318,125.77,125.74,0.05505645]
[1742575273240,37.57509318,125.77,125.74,0.05505645]
[1742575273441,37.57509318,125.77,125.74,8.01145645]
[1742575274446,7.9557,125.76,125.74,0.05505645]
[1742575274746,29.61999318,125.77,125.74,0.05505645]
[1742575275044,7.9561,125.75,125.74,0.05505645]
[1742575282850,7.9557,125.76,125.74,8.01175645]
[1742575283052,0.05999318,125.77,125.74,0.05505645]
[1742575283249,29.61999318,125.77,125.74,0.05505645]
[1742575283451,37.57509318,125.77,125.75,7.9557]
[1742575284350,0.05999318,125.77,125.74,0.05505645]
[1742575284754,0.05999318,125.77,125.75,7.9555]
[1742575285256,0.05999318,125.77,125.76,7.9554]
[1742575285950,8.01479318,125.77,125.75,7.9557]
[1742575287552,8.01479318,125.77,125.74,8.01135645]
[1742575287756,8.01479318,125.77,125.74,0.05505645]
[1742575288460,8.01479318,125.77,125.75,7.9558]
[1742575288662,0.05999318,125.77,125.75,7.9558]
[1742575291963,0.05999318,125.77,125.74,11.86006768]
[1742575292660,0.05999318,125.77,125.75,11.80501123]
[1742575292853,0.05999318,125.77,125.76,11.80501123]
[1742575293258,0.05999318,125.77,125.76,19.76041123]
[1742575294161,0.05999318,125.77,125.76,7.9554]
[1742575300966,0.05999318,125.77,125.76,19.76041123]
[1742575303676,0.05999318,125.77,125.75,7.9558]
[1742575303867,0.05999318,125.77,125.74,11.86006768]
[1742575304173,8.01509318,125.77,125.74,19.81646768]
[1742575304375,0.05999318,125.77,125.74,11.86006768]
[1742575305076,0.05999318,125.77,125.75,7.9558]
[1742575305673,8.01509318,125.77,125.75,7.9558]
[1742575306273,8.01509318,125.77,125.74,19.81636768]
[1742575306673,11.86500441,125.77,125.74,0.05505645]
[1742575307071,11.80501123,125.76,125.74,0.05505645]
[1742575307278,37.4961,125.75,125.74,0.05505645]
[1742575308973,29.54,125.75,125.74,0.05505645]
[1742575309170,29.59999318,125.77,125.74,11.86006768]
[1742575309475,29.59999318,125.77,125.74,19.81636768]
[1742575309675,29.59999318,125.77,125.74,8.01135645]
[1742575310275,7.9558,125.76,125.74,8.01135645]
[1742575310476,7.9558,125.76,125.74,0.05505645]
[1742575311073,7.9558,125.76,125.74,8.01155645]
[1742575311475,7.9561,125.75,125.74,0.05505645]
[1742575311969,7.958,125.72,125.71,262.56]
[1742575312482,7.958,125.72,125.68,31.68343323]
[1742575312678,41.34501123,125.73,125.68,31.68343323]
[1742575312871,7.9586,125.71,125.68,31.68343323]
[1742575313174,8.01560683,125.71,125.69,19.76461123]
[1742575313372,7.9592,125.7,125.68,11.85873789]
[1742575313676,7.9592,125.7,125.68,0.05372666]
[1742575313876,7.9592,125.7,125.68,8.01392666]
[1742575314580,8.01600683,125.71,125.68,8.01392666]
[1742575314778,8.01600683,125.71,125.69,7.9597]
[1742575315078,0.05700683,125.71,125.69,7.9597]
[1742575316477,0.05700683,125.71,125.68,8.01392666]
[1742575318377,0.05700683,125.71,125.69,7.9598]
[1742575318575,0.05700683,125.71,125.68,0.05372666]
[1742575318776,8.01600683,125.71,125.68,0.05372666]
[1742575318973,8.01600683,125.71,125.68,8.01392666]
[1742575319884,11.86201806,125.71,125.68,0.05372666]
[1742575320190,29.54,125.7,125.68,0.05372666]
[1742575320483,7.9599,125.69,125.68,0.05372666]
[1742575322578,19.76491123,125.69,125.68,0.05372666]
[1742575324084,7.9599,125.69,125.68,0.05372666]
[1742575324582,49.30451123,125.7,125.68,0.05372666]
[1742575325077,41.34501123,125.7,125.68,0.05372666]
[1742575325275,29.54,125.7,125.68,8.01392666]
[1742575325476,0.05700683,125.71,125.68,11.85873789]
[1742575325676,0.05700683,125.71,125.69,11.80501123]
[1742575326481,0.05700683,125.71,125.7,7.9592]
[1742575327680,0.05700683,125.71,125.7,19.76421123]
[1742575330588,11.80501123,125.76,125.75,18.37657071]
[1742575330789,29.54,125.76,125.75,18.37657071]
[1742575331190,37.4954,125.76,125.75,18.37657071]
[1742575331388,49.30041123,125.76,125.75,18.37657071]
[1742575332592,29.54,125.76,125.75,18.37657071]
[1742575333091,0.05373289,125.77,125.75,18.37657071]
[1742575333292,29.59373289,125.77,125.75,18.37657071]
[1742575333687,37.54893289,125.77,125.75,26.33227071]
[1742575334596,29.59373289,125.77,125.75,26.33227071]
[1742575334993,0.05373289,125.77,125.75,26.33227071]
[1742575335185,0.05373289,125.77,125.75,18.37657071]
[1742575335392,11.80501123,125.76,125.75,18.37657071]
[1742575335695,11.80501123,125.76,125.74,0.05163011]
[1742575335895,41.34501123,125.75,125.74,0.05163011]
[1742575336098,49.30111123,125.75,125.74,0.05163011]
[1742575336294,37.4961,125.75,125.74,0.05163011]
[1742575337192,49.30111123,125.75,125.74,0.05163011]
[1742575338697,7.958,125.72,125.69,11.80501123]
[1742575338895,29.54,125.72,125.69,11.80501123]
[1742575339198,29.54,125.72,125.68,20.19711123]
[1742575339397,7.9588,125.71,125.69,7.9596]
[1742575339899,8.01752105,125.71,125.69,0.06077885]
[1742575340501,0.05862105,125.71,125.69,0.06077885]
[1742575341299,0.05862105,125.71,125.7,19.76421123]
[1742575341699,29.52,125.73,125.72,7.958]
[1742575341895,7.957,125.74,125.72,7.958]
[1742575342200,7.957,125.74,125.7,11.80501123]
[1742575342399,7.957,125.74,125.71,7.9583]
[1742575342808,29.52,125.75,125.7,19.76391123]
[1742575343098,11.86295871,125.74,125.71,0.05649469]
[1742575343497,7.958,125.72,125.71,0.05649469]
[1742575343908,11.86295871,125.74,125.71,0.05649469]
[1742575344098,0.05794748,125.74,125.71,0.05649469]
[1742575344295,0.05794748,125.74,125.72,7.9574]
[1742575344997,8.01494748,125.74,125.72,7.9574]
[1742575345703,8.01494748,125.74,125.71,0.05649469]
[1742575345704,7.9573,125.73,125.71,8.01479469]
[1742575345903,0.05794748,125.74,125.71,8.01479469]
[1742575346493,8.01514748,125.74,125.72,7.9578]
[1742575347604,0.05794748,125.74,125.72,7.9578]
[1742575348304,0.05794748,125.74,125.71,11.86150592]
[1742575348503,0.05794748,125.74,125.72,11.80501123]
[1742575348707,0.05794748,125.74,125.73,11.80501123]
[1742575349101,0.05794748,125.74,125.73,19.76231123]
[1742575349799,37.4752,125.77,125.75,7.9558]
[1742575350000,7.9555,125.76,125.73,11.80501123]
[1742575350310,41.32501123,125.77,125.73,7.957]
[1742575350607,41.32501123,125.77,125.72,11.80501123]
[1742575350803,8.01245048,125.76,125.73,19.76201123]
[1742575350999,8.01245048,125.76,125.73,11.86096513]
[1742575351709,8.01245048,125.76,125.74,7.9564]
[1742575353100,8.01245048,125.76,125.73,11.86096513]
[1742575353101,8.01245048,125.76,125.73,19.81796513]
[1742575353307,7.9561,125.75,125.73,8.0129539]
[1742575356714,8.01225048,125.76,125.73,19.81796513]
[1742575357116,8.01225048,125.76,125.74,7.9565]
[1742575358014,8.01225048,125.76,125.73,19.81796513]
[1742575358317,8.01225048,125.76,125.73,11.86096513]
[1742575359920,8.01225048,125.76,125.73,19.81786513]
[1742575360507,7.9561,125.75,125.73,11.86096513]
[1742575361013,11.86156171,125.76,125.73,0.0559539]
[1742575361217,11.80501123,125.75,125.73,0.0559539]
[1742575361410,29.52,125.74,125.73,0.0559539]
[1742575361810,37.4767,125.74,125.73,0.0559539]
[1742575362915,29.52,125.74,125.73,0.0559539]
[1742575363617,37.4767,125.74,125.73,0.0559539]
[1742575365617,29.52,125.74,125.73,0.0559539]
[1742575366023,29.5,125.76,125.73,8.0129539]
[1742575367125,29.55487763,125.76,125.74,7.9566]
[1742575367522,29.55487763,125.76,125.73,19.81806513]
[1742575367523,7.9561,125.75,125.73,19.81806513]
[1742575367721,7.9561,125.75,125.73,8.0130539]
[1742575367918,7.9561,125.75,125.73,0.0559539]
[1742575368122,7.9567,125.74,125.73,0.0559539]
[1742575371429,7.9564,125.75,125.73,0.0559539]
[1742575371636,7.9564,125.75,125.73,8.0130539]
[1742575374625,8.01067763,125.76,125.73,8.0130539]
[1742575374921,0.05487763,125.76,125.75,7.9561]
[1742575377235,8.01027763,125.76,125.74,7.9564]
[1742575377433,0.05487763,125.76,125.73,11.86096513]
[1742575377933,7.9551,125.77,125.75,7.9557]
[1742575378534,7.9544,125.78,125.76,7.9554]
[1742575378928,0.0520836,125.78,125.76,0.05882908]
[1742575379129,7.9548,125.77,125.76,0.05882908]
[1742575380132,8.0063836,125.78,125.76,8.01422908]
[1742575380529,0.0520836,125.78,125.76,11.86384031]
[1742575380830,0.0520836,125.78,125.77,7.9548]
[1742575381034,0.0520836,125.78,125.76,0.05882908]
[1742575381735,0.0520836,125.78,125.76,8.01372908]
[1742575381937,0.0520836,125.78,125.76,0.05882908]
[1742575382436,0.0520836,125.78,125.77,7.9548]
[1742575383935,0.0520836,125.78,125.76,8.01392908]
[1742575384136,0.0520836,125.78,125.76,0.05882908]
[1742575384526,8.0067836,125.78,125.76,8.01382908]
[1742575385435,0.0520836,125.78,125.77,7.9548]
[1742575387445,0.0520836,125.78,125.76,8.01392908]
[1742575387742,0.0520836,125.78,125.76,0.05882908]
[1742575388040,0.0520836,125.78,125.77,7.9548]
[1742575391344,0.0520836,125.78,125.77,19.75981123]
[1742575392939,11.80501123,125.82,125.81,12.4950164]
[1742575393339,41.28501123,125.82,125.81,12.4950164]
[1742575393538,49.23661123,125.82,125.81,12.4950164]
[1742575393839,7.9516,125.82,125.81,12.4950164]
[1742575394040,19.75661123,125.82,125.81,12.4950164]
[1742575394641,19.75661123,125.82,125.81,6.5460164]
[1742575395046,19.75661123,125.82,125.81,1.64e-05]
[1742575395239,19.75661123,125.82,125.73,11.80501123]
[1742575395240,19.74501123,125.82,125.73,11.80501123]
[1742575395441,11.80501123,125.78,125.72,11.80501123]
[1742575395642,7.9562,125.75,125.73,7.9571]
[1742575395842,7.9562,125.75,125.72,11.80501123]
[1742575396036,11.80501123,125.76,125.71,312.02181123]
[1742575396245,7.9562,125.75,125.72,7.9575]
[1742575396447,8.01557782,125.75,125.72,8.01821199]
[1742575396637,8.01557782,125.75,125.72,19.82322322]
[1742575397647,0.05937782,125.75,125.72,0.06071199]
[1742575397845,11.86438905,125.75,125.72,0.06071199]
[1742575398042,7.9573,125.73,125.72,0.06071199]
[1742575398950,7.957,125.74,125.72,0.06071199]
[1742575399443,7.9573,125.73,125.72,0.06071199]
[1742575400753,7.957,125.74,125.72,0.06071199]
[1742575401754,7.957,125.74,125.72,8.01861199]